Cogmind - Beta 13 @@@ ROGUE MODE // 2024.03.14 @ 15:35:28 Player: Puck Result: Destroyed by G-67 Veteran with Field Laser Performance ------------- Evolutions (5) 2500 Regions Visited (16) 3200 Robots Destroyed (185) 925 Value Destroyed (6127) 6127 Prototype IDs (14) 280 Alien Tech Used (0) 0 Bonus (4234) 4234 TOTAL SCORE: 17266 Bonus ------- High Alert Combat Kills 958 Follower Combat Kills 2176 Met Data Miner 300 Built Enhanced Grunts 300 Met R17 at Cetus 500 Cogmind --------- Core Integrity 0/1000 Matter 168/300 Energy 8/265 System Corruption 43% Temperature Cool (17) Movement Hovering (55) Location -5/Factory Parts ------- > --- POWER (2) -------- Improved Ion Engine > --- PROPULSION (5) --- Antigrav System Antigrav System Gyrokinetic Inverter Combat Gravmag System > --- UTILITY (7) ------ Experimental Heat Sink Core Analyzer Core Analyzer > --- WEAPON (3) ------- Cooled Pulse Rifle KE Penetrator Enhanced Gauss Cannon > --- INVENTORY (5) ---- Disruptor Cannon Smartbomb Launcher Peak State ------------ > --- POWER ------------ Improved Deuterium Engine Quantum Reactor > --- PROPULSION ------- Carbon-fiber Leg Improved Carbon-fiber Leg Flexi-carbon Leg Flexi-carbon Leg Myomer Leg > --- UTILITY ---------- Advanced Heat Sink Large Storage Unit Improved Melee Analysis Suite Phase Shifter Centrium Medium Armor Plating Centrium Medium Armor Plating Centrium Medium Armor Plating > --- WEAPON ----------- Great Maul Power Sword Power Sword > --- INVENTORY -------- Carbon-fiber Leg Improved Carbon-fiber Leg Advanced Sensor Array Advanced Signal Interpreter Improved Melee Analysis Suite Microactuators Force Booster Focal Shield Point Defense System Authchip [Weapon] System Restoration Module Improved Grenade Launcher Ripper [Rating: 97] Favorites ----------- Power Light Angular Momentum Engine Engine Light Angular Momentum Engine Power Core Light Nuclear Core Reactor Quantum Reactor Propulsion Armored Huge Wheel Treads Light Treads Leg Flexi-carbon Leg Wheel Armored Huge Wheel Hover Unit Combat Gravmag System Flight Unit Impulse Thruster Utility Melee Analysis Suite Device Microactuators Storage Large Storage Unit Processor Melee Analysis Suite Protection Hardened Medium Armor Plating Weapon Power Sword Energy Gun Cooled Pulse Rifle Ballistic Gun Light Assault Rifle Ballistic Cannon Light Cannon Impact Weapon Great Maul Slashing Weapon Power Sword Build | -11 -10 -10 -8 -7 -7 -7 -7 -7 -7 -6 -6 -6 -6 -5 -5 -5 ------- Run | Yrd Mat Sub Mat Fac Was Fac Low Low Dat Pro Fac Ext Cet Fac Was Fac Slots Evolved 10 | . . . 4 2 . . . . . . 2 . . 2 . . Power 1 | . . . . . . . . . . . 1 . . . . . Propulsion 3 | . . . . 2 . . . . . . . . . 1 . . Utility 5 | . . . 3 . . . . . . . 1 . . 1 . . Weapon 1 | . . . 1 . . . . . . . . . . . . . Parts Attached 171 | 3 7 7 23 3 . 3 3 7 . 4 25 22 2 39 1 22 Power 25 | . 1 . 4 1 . . 1 2 . 1 5 4 . 4 . 2 Engine 18 | . 1 . 4 1 . . . 1 . 1 4 3 . 2 . 1 Core 6 | . . . . . . . 1 1 . . 1 1 . 1 . 1 Reactor 1 | . . . . . . . . . . . . . . 1 . . Propulsion 55 | 2 2 2 3 1 . 1 . . . 2 2 9 1 20 1 9 Treads 6 | 1 . 1 . . . . . . . . . . . 3 1 . Leg 23 | . . . . . . . . . . . . 7 1 14 . 1 Wheel 19 | 1 2 1 3 1 . 1 . . . 2 2 1 . 3 . 2 Hover 6 | . . . . . . . . . . . . 1 . . . 5 Flight 1 | . . . . . . . . . . . . . . . . 1 Utility 67 | . 3 1 12 . . 2 2 3 . 1 14 8 1 14 . 6 Device 24 | . . . . . . 1 . 1 . . 7 5 . 7 . 3 Storage 4 | . 1 . 2 . . . . 1 . . . . . . . . Processor 13 | . 2 . 2 . . . 1 . . . 4 . . 2 . 2 Hackware . | . . . . . . . . . . . . . . . . . Protection 26 | . . 1 8 . . 1 1 1 . 1 3 3 1 5 . 1 Artifact . | . . . . . . . . . . . . . . . . . Weapon 24 | 1 1 4 4 1 . . . 2 . . 4 1 . 1 . 5 Energy Gun 4 | . . 2 . . . . . . . . . . . . . 2 Energy Cannon . | . . . . . . . . . . . . . . . . . Ballistic Gun 2 | 1 . . . . . . . . . . . . . . . 1 Ballistic Cannon 4 | . 1 . 1 . . . . . . . . . . . . 2 Launcher . | . . . . . . . . . . . . . . . . . Special Weapon . | . . . . . . . . . . . . . . . . . Impact Weapon 5 | . . . 1 1 . . . 1 . . 1 1 . . . . Slashing Weapon 9 | . . 2 2 . . . . 1 . . 3 . . 1 . . Piercing Weapon . | . . . . . . . . . . . . . . . . . Special Melee Weapon . | . . . . . . . . . . . . . . . . . Unidentified Prototypes 4 | . . . . . . . . . . . . . 1 1 . 2 Corrupted Parts 1 | . . . . . . . . . . 1 . . . . . . System Corruption 3 | . . . . . . . . . . 3 . . . . . . Parts Lost 69 | . 1 5 1 . . 1 2 3 . 5 1 12 2 20 7 9 Power 12 | . . 1 . . . . 1 2 . . 1 3 1 2 . 1 Propulsion 29 | . 1 2 . . . . . . . 2 . 5 1 8 5 5 Utility 21 | . . 1 1 . . 1 1 1 . 2 . 4 . 7 1 2 Weapon 7 | . . 1 . . . . . . . 1 . . . 3 1 1 Highest Loss Streak 13 | . 1 3 1 . . 1 2 2 . 3 1 6 1 13 7 6 To Critical Strikes 2 | . . . . . . . . . . . . . 1 . 1 . Average Slot Usage (%) 82 | . 91 86 84 79 84 83 83 77 84 74 83 93 86 88 44 51 Engine 7 | . 14 7 8 7 7 7 5 . . 5 10 10 6 2 . 4 Core 1 | . . . . . . . . 1 7 1 1 1 . 2 2 3 Treads 2 | . 14 7 1 . . . . . . . . . . 4 . . Leg 5 | . . . . . . . . . . . . 14 26 20 15 1 Wheel 10 | . 13 20 13 15 15 15 15 15 15 12 14 6 . 2 . 6 Device 5 | . . . . . . 5 7 5 7 7 9 11 6 5 6 8 Storage 5 | . 7 . 8 7 7 7 7 7 7 7 6 6 6 5 2 . Processor 13 | . 13 16 16 15 15 15 15 15 15 15 15 12 6 9 9 3 Protection 8 | . . 5 14 15 15 8 7 8 7 3 3 6 13 12 . 3 Ballistic Gun 1 | . 14 . . . . . . . . . . . . . . 1 Ballistic Cannon 1 | . 11 1 2 . . . . . . . . . . . . . Impact Weapon 6 | . . . 2 10 15 15 15 14 15 15 7 6 6 2 . . Slashing Weapon 9 | . . 24 14 7 7 7 7 7 7 4 11 13 13 10 2 . Naked Turns 55 | . . . . . . . . . . . . . . . 43 12 Heaviest Build 102 | 12 19 14 56 55 53 53 49 46 45 49 64 83 83 102 66 33 Greatest Support 103 | 10 16 20 28 56 56 56 56 56 56 56 60 85 85 103 80 47 Greatest Overweight (x) 10 | 1 1 1 2 . . . . 1 . 1 1 10 . 8 1 2 Average Overweight (x) . | 1 . . 1 . . . . . . . . . . 1 . . Largest Inventory Capacity 15 | 8 10 5 15 15 15 15 15 15 15 15 15 15 15 15 15 5 Average Capacity 13 | 8 7 5 13 15 15 15 15 15 15 15 15 15 15 15 10 5 Most Carried 15 | 6 5 5 15 15 14 15 15 15 15 15 15 15 15 15 14 5 Average Carried 11 | 5 4 4 12 14 14 14 14 14 15 13 13 13 14 11 9 4 Final Capacity 15 | 8 5 5 15 15 15 15 15 15 15 15 15 15 15 15 5 5 Final Carried 15 | 4 5 4 15 14 14 15 15 15 15 12 15 14 15 14 4 3 Class Distribution -------------------- 48% | Gladiator 27% | Scavenger-Gladiator 16% | Mutant 6% | Scavenger-Mutant Dominant Class ---------------- Mutant | -10/Materials Mutant | -10/Subcaves Gladiator | -8/Materials Gladiator | -7/Factory Gladiator | -7/Waste Gladiator | -7/Factory Gladiator | -7/Lower Caves Gladiator | -7/Lower Caves Gladiator | -7/Data Miner Gladiator | -6/Proximity Caves Gladiator | -6/Factory Scavenger-Gladiator | -6/Extension Scavenger-Gladiator | -6/Cetus Scavenger-Gladiator | -5/Factory Scavenger-Mutant | -5/Waste Scavenger-Mutant | -5/Factory Resources | -11 -10 -10 -8 -7 -7 -7 -7 -7 -7 -6 -6 -6 -6 -5 -5 -5 ----------- Run | Yrd Mat Sub Mat Fac Was Fac Low Low Dat Pro Fac Ext Cet Fac Was Fac Matter Collected 2098 | 200 156 161 269 20 . 67 31 100 . 62 225 229 20 358 . 200 Remotely . | . . . . . . . . . . . . . . . . . Salvage Created 7811 | . 276 194 1700 61 . 807 88 475 . 162 1308 978 . 1362 . 400 Parts 294 | . 14 15 102 1 . 27 6 9 . 5 37 16 . 43 . 19 Haulers Intercepted 9 | . 1 . 3 . . 4 . . . . . . . 1 . . Recyclers Shooed 7 | . . . 1 . . 1 . . . . 1 2 . 1 . 1 Parts Field Recycled . | . . . . . . . . . . . . . . . . . Retrieved Matter . | . . . . . . . . . . . . . . . . . Parts Self-Destructed 32 | . . 12 . . . . 5 9 . 6 . . . . . . Prevented 3 | . . . . . . . . 3 . . . . . . . . Kills | -11 -10 -10 -8 -7 -7 -7 -7 -7 -7 -6 -6 -6 -6 -5 -5 -5 ------- Run | Yrd Mat Sub Mat Fac Was Fac Low Low Dat Pro Fac Ext Cet Fac Was Fac Combat Hostiles Destroyed 121 | . 7 5 32 1 . 5 4 11 . 4 19 11 . 17 . 5 Melee 83 | . . 3 29 . . 3 4 6 . 2 13 7 . 16 . . Guns 9 | . 3 1 . . . . . . . . . . . . . 5 Cannons 5 | . 4 1 . . . . . . . . . . . . . . Classes Destroyed 21 | . 3 4 6 1 . 1 . 1 . . 1 2 . 2 . . Worker 10 | . . . 2 . . 6 . . . . 2 . . . . . Builder 9 | . . . . . . 3 . . . . . 2 . 4 . . Tunneler 1 | . . . 1 . . . . . . . . . . . . . Hauler 9 | . 1 . 3 . . 4 . . . . . . . 1 . . Recycler 11 | . . . 2 . . 2 . . . . 3 2 . 1 . 1 Mechanic 3 | . . . 1 . . 1 . . . . . . . 1 . . Operator 8 | . 1 . 2 1 . . . . . . 1 1 . 2 . . Watcher 13 | . . . 5 . . 2 . . . . 3 2 . 1 . . Swarmer 28 | . . 2 11 . . . 4 3 . 2 5 . . 1 . . Grunt 49 | . 7 . 14 . . 1 . 6 . 1 8 4 . 7 . 1 Brawler 5 | . . . . . . . . . . . 2 1 . 2 . . Duelist 4 | . . . 1 . . . . 2 . . . . . 1 . . Sentry 17 | . . 1 6 . . 2 . . . 1 1 4 . 2 . . Demolisher 1 | . . . . . . . . . . . . 1 . . . . Specialist 1 | . . . . . . . . . . . . . . 1 . . Hunter 1 | . . . . . . . . . . . . . . 1 . . Programmer 11 | . . . . 1 . 2 . . . . 3 . . 1 . 4 Behemoth 1 | . . . . . . . . . . . . 1 . . . . Artisan 1 | . . 1 . . . . . . . . . . . . . . Subdweller 2 | . . 2 . . . . . . . . . . . . . . Samaritan 1 | . . . . . . . . 1 . . . . . . . . Savage 1 | . . . . . . . . . . . . . . 1 . . Best Kill Streak 8 | . 3 2 8 1 . 8 4 3 . 2 6 3 . 4 . 3 Combat Bots Only 7 | . 3 2 7 1 . 1 4 3 . 2 3 3 . 3 . 3 Max Kills in Single Turn 1 | . 1 1 1 1 . 1 1 1 . 1 1 1 . 1 . 1 Gunslinging . | . . . . . . . . . . . . . . . . . Exploded . | . . . . . . . . . . . . . . . . . Melee 1 | . . 1 1 . . 1 1 1 . 1 1 1 . 1 . . Uniques/NPCs Destroyed . | . . . . . . . . . . . . . . . . . Combat | -11 -10 -10 -8 -7 -7 -7 -7 -7 -7 -6 -6 -6 -6 -5 -5 -5 -------- Run | Yrd Mat Sub Mat Fac Was Fac Low Low Dat Pro Fac Ext Cet Fac Was Fac Hostile Shots Fired 1222 | . 28 50 120 6 . 83 26 63 . 33 125 243 56 297 13 79 Missed 371 | . 6 16 33 . . 23 5 10 . 11 43 96 30 80 1 17 Damage Taken 13479 | . 279 568 1293 90 . 498 254 800 . 272 1472 1600 576 4254 562 961 Core 2052 | . 31 154 141 . . 35 20 82 . 33 216 293 36 352 494 165 Absorbed by Shields 760 | . . . . . . 65 68 62 . . . 181 142 . . 242 Regen/Repaired (Parts) 48 | . . . 48 . . . . . . . . . . . . . Core Remaining (%) 62 | 100 . 26 74 . . . . . . 75 . . 35 . . . Volleys Fired 78 | . 38 10 3 . . . . . . . . . . . . 27 Largest 3 | . 2 2 1 . . . . . . . . . . . . 3 Hottest 134 | . 60 75 44 . . . . . . . . . . . . 134 Shots Fired 142 | . 76 20 3 . . . . . . . . . . . . 43 Gun 106 | . 54 10 . . . . . . . . . . . . . 42 Cannon 36 | . 22 10 3 . . . . . . . . . . . . 1 Launcher . | . . . . . . . . . . . . . . . . . Special . | . . . . . . . . . . . . . . . . . Kinetic 89 | . 60 16 3 . . . . . . . . . . . . 10 Thermal 53 | . 16 4 . . . . . . . . . . . . . 33 Explosive . | . . . . . . . . . . . . . . . . . Electromagnetic . | . . . . . . . . . . . . . . . . . Robot Hit Streak 12 | . 8 12 1 . . . . . . . . . . . . 6 Robot Miss Streak 5 | . 5 1 1 . . . . . . . . . . . . 4 Penetration Max . | . . . . . . . . . . . . . . . . . Secondary Targets . | . . . . . . . . . . . . . . . . . Shots Hit Robots 522 | . 43 32 87 5 . 38 5 28 . 4 72 60 12 108 1 27 Core Hits 168 | . 18 8 41 . . 10 4 8 . 2 20 12 1 28 1 15 Critical Kills 12 | . . . 3 . . 2 2 1 . 1 2 1 . . . . Critical Parts Destroyed 52 | . 1 . 4 1 . 6 1 2 . 1 12 12 2 10 . . Critical Strikes 97 | . 2 2 13 2 . 9 3 5 . 2 15 16 3 22 1 2 Burn 2 | . . . . . . . . . . . . . . . . 2 Destroy 1 | . 1 . . . . . . . . . . . . . . . Blast 2 | . 1 1 . . . . . . . . . . . . . . Smash 63 | . . . 7 1 . 8 3 3 . 2 14 13 2 10 . . Sever 29 | . . 1 6 1 . 1 . 2 . . 1 3 1 12 1 . Melee Attacks 595 | . . 28 117 6 . 63 6 43 . 8 97 82 13 131 1 . Impact 308 | . . . 19 5 . 51 5 36 . 7 67 59 8 51 . . Slashing 287 | . . 28 98 1 . 12 1 7 . 1 30 23 5 80 1 . Piercing . | . . . . . . . . . . . . . . . . . Sneak Attacks 55 | . . 2 14 1 . 16 . 1 . . 5 6 . 10 . . Combat Hostiles . | . . . . . . . . . . . . . . . . . Follow-up Attacks 100 | . . 5 9 1 . 11 1 9 . 1 19 17 5 22 . . Damage Inflicted 22884 | . 468 875 4047 322 . 2599 267 1382 . 191 3664 2860 458 5011 20 720 Guns 1025 | . 219 86 . . . . . . . . . . . . . 720 Cannons 394 | . 249 120 25 . . . . . . . . . . . . . Explosions . | . . . . . . . . . . . . . . . . . Melee 21451 | . . 669 4021 322 . 2599 267 1382 . 191 3664 2847 458 5011 20 . Ramming 14 | . . . 1 . . . . . . . . 13 . . . . Kinetic 777 | . 390 161 25 . . . . . . . . . . . . 201 Thermal 642 | . 78 45 . . . . . . . . . . . . . 519 Explosive . | . . . . . . . . . . . . . . . . . Electromagnetic . | . . . . . . . . . . . . . . . . . Impact 12759 | . . . 930 290 . 2414 230 1151 . 191 3099 2205 244 2005 . . Slashing 8692 | . . 669 3091 32 . 185 37 231 . . 565 642 214 3006 20 . Piercing . | . . . . . . . . . . . . . . . . . Highest Corruption 43 | . . . 1 1 1 4 4 4 4 7 1 1 . 24 32 43 Average Corruption 11 | . . . 1 1 1 1 4 4 4 6 1 1 . 18 30 34 Corruption Purged 3 | . . . . . . . . . . . 1 1 . 1 . . Corruption Blocked . | . . . . . . . . . . . . . . . . . Effects 127 | . . . 3 . . 6 6 14 . 13 . . . 34 12 39 Message Errors 27 | . . . . . . 1 1 3 . 2 . . . 10 4 6 Matter Fused 35 | . . . 2 . . 4 1 4 . 6 . . . 8 . 10 Heat Flow Errors 10 | . . . . . . . 2 1 . . . . . 1 . 6 Energy Discharges 17 | . . . . . . . . 2 . 2 . . . 6 2 5 Parts Rejected 3 | . . . . . . . . 1 . . . . . 1 . 1 Parts Fused 1 | . . . . . . . 1 . . . . . . . . . Data Loss (minor) 9 | . . . . . . 1 . 1 . 2 . . . 2 . 3 Data Loss (major) 7 | . . . 1 . . . . 1 . 1 . . . 1 . 3 Alerts 4 | . . . . . . . 1 1 . . . . . 2 . . Misdirections 12 | . . . . . . . . . . . . . . 3 6 3 Weapon Failures 2 | . . . . . . . . . . . . . . . . 2 Overload Shots . | . . . . . . . . . . . . . . . . . Overflow Damage 5457 | . . 97 531 175 . 1108 65 279 . 72 1020 977 63 1070 . . Projectiles 7 | . . . . . . . . . . . 3 . . 4 . . Explosions . | . . . . . . . . . . . . . . . . . Melee 5450 | . . 97 531 175 . 1108 65 279 . 72 1017 977 63 1066 . . Knockbacks 64 | . 4 4 2 2 . 4 . 7 . . 14 14 1 12 . . Impact 53 | . . . 2 2 . 4 . 7 . . 13 13 1 11 . . Kinetic 8 | . 4 4 . . . . . . . . . . . . . . Secondary 3 | . . . . . . . . . . . 1 1 . 1 . . Self-Inflicted Damage 6 | . . . . . . . . . . . . 6 . . . . Shots . | . . . . . . . . . . . . . . . . . Rammed 2 | . . . 1 . . . . . . . . 1 . . . . Targets Rammed 2 | . . . 1 . . . . . . . . 1 . . . . Kicked . | . . . . . . . . . . . . . . . . . Crushed . | . . . . . . . . . . . . . . . . . Highest Temperature 252 | . 76 . 28 . . 3 208 246 . . 34 40 71 240 . 252 Average Temperature 71 | . 27 . 10 . . 3 98 113 . . 14 19 34 111 . 60 Received Heat Transfer 3283 | . 174 162 561 . . 106 . 198 . 51 418 409 79 954 . 171 Effects 4 | . . . . . . . . . . . . . . 4 . . Energy Bleed 1 | . . . . . . . . . . . . . . 1 . . Interference 3 | . . . . . . . . . . . . . . 3 . . Siege Activations . | . . . . . . . . . . . . . . . . . Robots Corrupted . | . . . . . . . . . . . . . . . . . Combat Hostiles . | . . . . . . . . . . . . . . . . . Parts Fried 78 | . . . 6 4 . 20 1 8 . 2 12 14 . 11 . . Impact Corruptions 160 | . . . 11 7 . 31 2 13 . 2 35 27 2 30 . . Robots Melted . | . . . . . . . . . . . . . . . . . Combat Hostiles . | . . . . . . . . . . . . . . . . . Parts Melted 2 | . . . . . . . . . . . . . . . . 2 Heat Transferred 1237 | . 175 100 . . . . . . . . . . . . . 962 Parts Sabotaged . | . . . . . . . . . . . . . . . . . Parts Stolen . | . . . . . . . . . . . . . . . . . Parts Stripped . | . . . . . . . . . . . . . . . . . Power Chain Reactions . | . . . . . . . . . . . . . . . . . Alert | -11 -10 -10 -8 -7 -7 -7 -7 -7 -7 -6 -6 -6 -6 -5 -5 -5 ------- Run | Yrd Mat Sub Mat Fac Was Fac Low Low Dat Pro Fac Ext Cet Fac Was Fac Peak Influence 994 | . 206 . 523 235 82 192 . . . . 975 718 788 994 301 166 Initial 477 | . . . . 170 82 57 . . . . 450 477 304 441 301 161 Average 404 | . 72 . 244 189 82 115 . . . . 614 494 563 825 270 117 Maximum Alert Level 3 | . 1 . 2 1 . . . . . . 3 3 3 3 1 . Low Security (%) 34 | 100 92 . 40 51 100 100 . . . . . . . . . 100 Level 1 12 | . 7 . 34 48 . . . . . . 4 8 17 . 100 . Level 2 34 | . . . 24 . . . . . . . 63 90 74 17 . . Level 3 17 | . . . . . . . . . . . 31 . 8 82 . . Level 4 . | . . . . . . . . . . . . . . . . . Level 5 . | . . . . . . . . . . . . . . . . . High Security . | . . . . . . . . . . . . . . . . . Max Security . | . . . . . . . . . . . . . . . . . Squads Dispatched 40 | . 1 . 6 4 . 1 . . . . 12 2 . 13 . 1 Investigation 8 | . . . 1 2 . . . . . . 1 . . 3 . 1 Extermination 6 | . . . . 1 . 1 . . . . 2 . . 2 . . Reinforcement 15 | . 1 . 5 1 . . . . . . 5 1 . 2 . . Assault 6 | . . . . . . . . . . . 2 1 . 3 . . Garrison 5 | . . . . . . . . . . . 2 . . 3 . . Intercept . | . . . . . . . . . . . . . . . . . Searches Triggered 1 | . . . . . . . . . . . 1 . . . . . Data Miner Redirects 2 | . . . . . . . . . . . . . . 1 . 1 Construction Impeded 1 | . . . . . . . . . . . . . . 1 . . Haulers Reinforced 1 | . . . . . . . . . . . 1 . . . . . Active Scanning Responses . | . . . . . . . . . . . . . . . . . Cargo Convoy Interrupts . | . . . . . . . . . . . . . . . . . Stealth | -11 -10 -10 -8 -7 -7 -7 -7 -7 -7 -6 -6 -6 -6 -5 -5 -5 --------- Run | Yrd Mat Sub Mat Fac Was Fac Low Low Dat Pro Fac Ext Cet Fac Was Fac Distress Signals 12 | . . . 5 . . . . . . 1 2 1 2 1 . . Communications Jammed . | . . . . . . . . . . . . . . . . . Distress Signals . | . . . . . . . . . . . . . . . . . Times Spotted 260 | . 10 9 45 3 1 8 4 15 . 8 45 33 16 41 6 16 Peak Tracking Total 7 | . 2 3 7 2 1 2 4 3 . 4 5 6 5 6 6 7 Tactical Retreats 29 | . . 2 6 . 1 . . 1 . . 11 1 1 4 . 2 Traps | -11 -10 -10 -8 -7 -7 -7 -7 -7 -7 -6 -6 -6 -6 -5 -5 -5 ------- Run | Yrd Mat Sub Mat Fac Was Fac Low Low Dat Pro Fac Ext Cet Fac Was Fac Traps Triggered 12 | . . . 4 2 . . . . . . 5 . . 1 . . Indirectly . | . . . . . . . . . . . . . . . . . Trap Hack Attempts . | . . . . . . . . . . . . . . . . . Triggered . | . . . . . . . . . . . . . . . . . Disarmed . | . . . . . . . . . . . . . . . . . Reprogrammed . | . . . . . . . . . . . . . . . . . Reused . | . . . . . . . . . . . . . . . . . Traps Extracted . | . . . . . . . . . . . . . . . . . Installed . | . . . . . . . . . . . . . . . . . Triggered 2 | . . . . . . . . 1 . . 1 . . . . . Machines | -11 -10 -10 -8 -7 -7 -7 -7 -7 -7 -6 -6 -6 -6 -5 -5 -5 ---------- Run | Yrd Mat Sub Mat Fac Was Fac Low Low Dat Pro Fac Ext Cet Fac Was Fac Machines Disabled 7 | . . . 1 . . . . . . . 1 3 . 1 . 1 Max in Single Turn 1 | . . . 1 . . . . . . . 1 1 . . . 1 Machines Repaired . | . . . . . . . . . . . . . . . . . Machines Dismantled . | . . . . . . . . . . . . . . . . . Machines Sabotaged . | . . . . . . . . . . . . . . . . . Overloaded Fab Kills . | . . . . . . . . . . . . . . . . . Hacking | -11 -10 -10 -8 -7 -7 -7 -7 -7 -7 -6 -6 -6 -6 -5 -5 -5 --------- Run | Yrd Mat Sub Mat Fac Was Fac Low Low Dat Pro Fac Ext Cet Fac Was Fac Machines Accessed 34 | . 3 1 6 3 . 1 . . 4 . 3 5 . 3 . 5 Terminals 18 | . 2 . 3 1 . 1 . . . . 2 5 . 1 . 3 Fabricators 1 | . . . . 1 . . . . . . . . . . . . Repair Stations 3 | . . . 1 . . . . . . . 1 . . . . 1 Recycling Units 5 | . 1 . 1 . . . . . . . . . . 2 . 1 Scanalyzers 2 | . . . 1 1 . . . . . . . . . . . . Garrison Access . | . . . . . . . . . . . . . . . . . Total Hacks 103 | . 6 2 26 4 . 4 . . 30 . 5 11 . 5 . 10 Successful 62 | . 5 2 15 1 . 1 . . 30 . 2 4 . . . 2 Failed 41 | . 1 . 11 3 . 3 . . . . 3 7 . 5 . 8 Catastrophic 14 | . . . 4 1 . . . . . . 2 1 . 2 . 4 Database Lockouts . | . . . . . . . . . . . . . . . . . Manual 23 | . 6 1 6 3 . . . . . . 2 2 1 2 . . Terminals 40 | . 3 . 8 2 . 4 . . . . 4 11 . 1 . 7 Fabricators 1 | . . . . 1 . . . . . . . . . . . . Repair Stations 9 | . . . 6 . . . . . . . 1 . . . . 2 Recycling Units 11 | . 3 . 3 . . . . . . . . . . 4 . 1 Scanalyzers 10 | . . . 9 1 . . . . . . . . . . . . Garrison Access . | . . . . . . . . . . . . . . . . . Terminal Hacks 44 | . 1 2 3 . . 1 . . 30 . 2 4 . . . 1 Record 15 | . . 2 . . . . . . 11 . 1 1 . . . . Part Schematic 11 | . . . . . . . . . 11 . . . . . . . Robot Schematic 5 | . . . . . . . . . 5 . . . . . . . Prototype ID Bank 3 | . . . . . . . . . 3 . . . . . . . Branch Access Points 1 | . . . . . . 1 . . . . . . . . . . Terminal Index 1 | . . . . . . . . . . . 1 . . . . . Alert Level 2 | . . . 1 . . . . . . . . 1 . . . . Unreport Threat 3 | . . . 2 . . . . . . . . 1 . . . . Locate Traps 2 | . 1 . . . . . . . . . . 1 . . . . Zone Layout 1 | . . . . . . . . . . . . . . . . 1 Fabricator Hacks . | . . . . . . . . . . . . . . . . . Repair Station Hacks 4 | . . . 4 . . . . . . . . . . . . . Scan Component 2 | . . . 2 . . . . . . . . . . . . . Repair 2 | . . . 2 . . . . . . . . . . . . . Recycling Unit Hacks 1 | . . . . . . . . . . . . . . . . 1 Retrieve Components 1 | . . . . . . . . . . . . . . . . 1 Scanalyzer 8 | . . . 8 . . . . . . . . . . . . . Insert Component 4 | . . . 4 . . . . . . . . . . . . . Analyze 4 | . . . 4 . . . . . . . . . . . . . Garrison Access Hacks . | . . . . . . . . . . . . . . . . . Unauthorized Hacks 5 | . 4 . . 1 . . . . . . . . . . . . Terminals 2 | . 2 . . . . . . . . . . . . . . . Botnet 2 | . 2 . . . . . . . . . . . . . . . Fabricators 1 | . . . . 1 . . . . . . . . . . . . Recompile 1 | . . . . 1 . . . . . . . . . . . . Repair Stations . | . . . . . . . . . . . . . . . . . Recycling Units 2 | . 2 . . . . . . . . . . . . . . . Reject 1 | . 1 . . . . . . . . . . . . . . . Mask 1 | . 1 . . . . . . . . . . . . . . . Scanalyzers . | . . . . . . . . . . . . . . . . . Garrison Access . | . . . . . . . . . . . . . . . . . Data Cores Recovered . | . . . . . . . . . . . . . . . . . Used . | . . . . . . . . . . . . . . . . . Hacking Detections 25 | . 1 . 5 2 . 1 . . . . 3 5 . 3 . 5 Full Trace Events 3 | . . . . . . . . . . . . . . 2 . 1 Feedback Events 1 | . . . . . . . . . . . . . . 1 . . Corruption 1 | . . . . . . . . . . . . . . 1 . . Feedback Blocked . | . . . . . . . . . . . . . . . . . Robot Schematics Acquired 5 | . . . . . . . . . 5 . . . . . . . Robots Built . | . . . . . . . . . . . . . . . . . Authchips . | . . . . . . . . . . . . . . . . . Time . | . . . . . . . . . . . . . . . . . Total Robot Build Rating . | . . . . . . . . . . . . . . . . . Part Schematics Acquired 15 | . . . 4 . . . . . 11 . . . . . . . Parts Built . | . . . . . . . . . . . . . . . . . Authchips . | . . . . . . . . . . . . . . . . . Time . | . . . . . . . . . . . . . . . . . Total Part Build Rating . | . . . . . . . . . . . . . . . . . Parts Repaired 2 | . . . 2 . . . . . . . . . . . . . Time 88 | . . . 88 . . . . . . . . . . . . . Parts Recycled . | . . . . . . . . . . . . . . . . . Recycled Matter . | . . . . . . . . . . . . . . . . . Retrieved Matter . | . . . . . . . . . . . . . . . . . Retrieved Components 3 | . . . . . . . . . . . . . . . . 3 Parts Scanalyzed 4 | . . . 4 . . . . . . . . . . . . . Part Schematics Acquired 4 | . . . 4 . . . . . . . . . . . . . Parts Damaged . | . . . . . . . . . . . . . . . . . Bothacking | -11 -10 -10 -8 -7 -7 -7 -7 -7 -7 -6 -6 -6 -6 -5 -5 -5 ------------ Run | Yrd Mat Sub Mat Fac Was Fac Low Low Dat Pro Fac Ext Cet Fac Was Fac Used RIF Installer . | . . . . . . . . . . . . . . . . . Robots Hacked . | . . . . . . . . . . . . . . . . . Non-combat . | . . . . . . . . . . . . . . . . . Combat . | . . . . . . . . . . . . . . . . . Robot Hacks Applied . | . . . . . . . . . . . . . . . . . Relay Couplers Released 3 | . . . . . . . . . . . . . . 3 . . Programmers 3 | . . . . . . . . . . . . . . 3 . . Fabnet Peak Effective % . | . . . . . . . . . . . . . . . . . Robots Rewired 14 | . . . . . . . . . . . . 14 . . . . Allies Hacked . | . . . . . . . . . . . . . . . . . Hacks Repelled . | . . . . . . . . . . . . . . . . . Allies | -11 -10 -10 -8 -7 -7 -7 -7 -7 -7 -6 -6 -6 -6 -5 -5 -5 -------- Run | Yrd Mat Sub Mat Fac Was Fac Low Low Dat Pro Fac Ext Cet Fac Was Fac Total Allies 33 | . . . . . . . . . . 1 . 27 5 . . . Largest Group 9 | . . . . . . . . . . 1 1 9 9 8 . . Highest-Rated Group 709 | . . . . . . . . . . 96 96 409 709 693 . . Highest-Rated Ally 159 | . . . . . . . . . . 96 96 159 159 159 . . Total Orders . | . . . . . . . . . . . . . . . . . Ally Attacks 340 | . . . . . . . . . . 4 25 187 71 53 . . Total Damage 8670 | . . . . . . . . . . 92 656 3835 2149 1938 . . Kills 58 | . . . . . . . . . . 2 5 25 16 10 . . Allies Corrupted 3 | . . . . . . . . . . . . . . 3 . . Allies Melted . | . . . . . . . . . . . . . . . . . Intel | -11 -10 -10 -8 -7 -7 -7 -7 -7 -7 -6 -6 -6 -6 -5 -5 -5 ------- Run | Yrd Mat Sub Mat Fac Was Fac Low Low Dat Pro Fac Ext Cet Fac Was Fac Robot Analysis Total . | . . . . . . . . . . . . . . . . . Derelict Logs Recovered 4 | . . . . . . . 1 1 . 2 . . . . . . Drone Launches . | . . . . . . . . . . . . . . . . . Drone Recoveries . | . . . . . . . . . . . . . . . . . Exploration | -11 -10 -10 -8 -7 -7 -7 -7 -7 -7 -6 -6 -6 -6 -5 -5 -5 ------------- Run | Yrd Mat Sub Mat Fac Was Fac Low Low Dat Pro Fac Ext Cet Fac Was Fac Turns Passed 10098 | 6 680 494 1340 361 103 604 293 783 75 432 1148 1415 294 1259 103 708 Spaces Moved 6849 | 1 322 369 793 336 103 440 264 602 76 325 795 808 123 645 130 717 Core 301 | . . . . . . . . . . . . 1 . . 83 217 Treads 145 | . . 122 23 . . . . . . . . . . . . . Legs 1168 | . . . . . . . . . . . . 498 123 499 47 1 Wheels 5047 | 1 322 247 770 336 103 440 264 602 76 325 795 305 . 146 . 315 Hover 188 | . . . . . . . . . . . . 4 . . . 184 Flight . | . . . . . . . . . . . . . . . . . Fastest Speed 50 | 95 80 80 80 100 100 100 100 100 100 100 100 100 120 120 50 50 Average Speed 106 | 95 92 107 111 100 100 100 100 110 100 105 107 116 120 132 76 81 Slowest Speed 550 | 95 115 160 160 100 100 100 100 115 100 115 115 550 120 200 190 220 Overloaded Moves . | . . . . . . . . . . . . . . . . . Propulsion Burnouts . | . . . . . . . . . . . . . . . . . Robots Hopped . | . . . . . . . . . . . . . . . . . Cave-ins Triggered . | . . . . . . . . . . . . . . . . . Exploration Rate (%) 43 | 2 41 27 67 11 70 14 53 72 68 51 28 73 57 20 75 16 Regions Visited 16 Branch Regions 7 Pre-discovered Areas 2 | . . . . . . . 1 . 1 . . . . . . . Known Exits Taken 2 | . . . . . . 1 . . . . 1 . . . . . Unknown Exits Taken 10 | 1 1 1 1 . . . 1 1 1 1 . 1 1 . . . Scrap Searched 7 | . . 1 . . . . 1 2 . 3 . . . . . . Spaces Dug 8 | . . . . . . 7 . . . . . . . 1 . . Terrain Destroyed 11 | . . . 1 . . 7 . . . . . . . 1 . 2 Melee 8 | . . . . . . 7 . . . . . . . 1 . . Projectile 3 | . . . 1 . . . . . . . . . . . . 2 AOE . | . . . . . . . . . . . . . . . . . Terrain Rammed . | . . . . . . . . . . . . . . . . . Walls Destroyed . | . . . . . . . . . . . . . . . . . Machines Disabled . | . . . . . . . . . . . . . . . . . Actions | -11 -10 -10 -8 -7 -7 -7 -7 -7 -7 -6 -6 -6 -6 -5 -5 -5 --------- Run | Yrd Mat Sub Mat Fac Was Fac Low Low Dat Pro Fac Ext Cet Fac Was Fac Total 8734 | 5 635 415 1085 352 103 520 283 662 75 406 962 1186 252 866 132 795 Wait 903 | . 260 2 135 . . 34 6 20 . 69 44 139 115 59 . 20 Move 6835 | . 321 368 792 336 102 439 263 601 75 324 794 807 122 645 129 717 Hop . | . . . . . . . . . . . . . . . . . Pick Up 79 | . 4 3 19 4 . 3 3 1 . 2 15 6 3 12 . 4 Fast Attach 80 | . 3 3 11 1 . 2 1 4 . . 7 11 1 17 . 19 Attach 41 | . 1 3 2 1 . 1 1 1 . 3 5 5 1 13 1 3 Detach 7 | . . 1 1 . . . . . . . 1 1 . 3 . . Swap 50 | 3 3 1 10 1 . . 1 2 . 1 13 6 . 9 . . Drop 78 | 2 5 3 15 4 . 3 3 1 . 1 16 9 2 9 1 4 Fire 78 | . 38 10 3 . . . . . . . . . . . . 27 Melee 437 | . . 21 96 5 . 38 5 32 . 6 67 59 8 99 1 . Ram 3 | . . . 1 . . . . . . . . 1 . . . 1 Kick . | . . . . . . . . . . . . . . . . . Crush . | . . . . . . . . . . . . . . . . . Escape Stasis . | . . . . . . . . . . . . . . . . . Rewire 143 | . . . . . 1 . . . . . . 142 . . . . Trap . | . . . . . . . . . . . . . . . . . Miscellaneous . | . . . . . . . . . . . . . . . . . Route ------- -11/Scrapyard -10/Materials (discovered 2 exits: [*Mat] / *Sub) -10/Subcaves -8/Materials (discovered 2 exits: *Fac x2) -7/Factory -7/Waste -7/Factory (discovered 4 exits: Sto x2 / *Low x2) -7/Lower Caves -7/Lower Caves -7/Data Miner -6/Proximity Caves -6/Factory (discovered 2 exits: Low / *Ext) -6/Extension (discovered 2 exits: *Fac / *Cet) -6/Cetus (discovered 2 exits: *Fac / [*Arc]) -5/Factory -5/Waste -5/Factory History --------- Turn | Location | Event 7 | -11/Scrapyard | Discovered new exit (range 0) 7 | -11/Scrapyard | Entered Materials 156 | -10/Materials | Discovered new exit (range 9) 301 | -10/Materials | Build established: Mutant 684 | -10/Materials | Discovered new exit (range 3) 687 | -10/Materials | Entered Subcaves 689 | -10/Subcaves | A swath of the cavern ceiling suddenly collapsed 751 | -10/Subcaves | Core integrity fell below 50% 932 | -10/Subcaves | Discovered new exit (range 12) 946 | -10/Subcaves | Shifting Twisted Machinery released Sub. Laser 956 | -10/Subcaves | Ambushed by angry Subdweller bent on revenge 1008 | -10/Subcaves | Lost 3 parts (1p1n1u) 1042 | -10/Subcaves | Visited Clippyterm 1046 | -10/Subcaves | Learned Factory garrison access intel 1181 | -10/Subcaves | Entered Materials 1181 | -8/Materials | Evolved 4 slots: Utility x3, Weapon x1 1657 | -8/Materials | Repaired Ripper 1707 | -8/Materials | Repaired Ripper 1854 | -8/Materials | Destroyed 7 combat bots 2019 | -8/Materials | Build established: Gladiator 2299 | -8/Materials | Discovered new exit (range 5) 2507 | -8/Materials | Discovered new exit (range 8) 2521 | -8/Materials | Entered Factory 2521 | -7/Factory | Evolved 2 slots: Propulsion x2 2522 | -7/Factory | Loaded intel: 4 garrison access locations 2829 | -7/Factory | Discovered new exit (range 9) 2882 | -7/Factory | Sucked down chute 2882 | -7/Factory | Entered Waste 2882 | -7/Waste | The area was eerily silent 2910 | -7/Waste | A Compactor rumbled back to life 2910 | -7/Waste | Spotted C-40 Crusher 2969 | -7/Waste | Discovered new exit (range 14) 2985 | -7/Waste | Entered Factory 3375 | -7/Factory | Identified exit to Storage 3375 | -7/Factory | Identified exit to Lower Caves 3589 | -7/Factory | Entered Lower Caves 3789 | -7/Lower Caves | Learned location of Extension (-6) 3874 | -7/Lower Caves | Discovered new exit (range 6) 3882 | -7/Lower Caves | Entered another Lower Caves area 4102 | -7/Lower Caves | Spotted B-75 Beast 4340 | -7/Lower Caves | Learned Factory emergency access door positions 4662 | -7/Lower Caves | Discovered new exit (range 3) 4665 | -7/Lower Caves | Entered Data Miner 4665 | -7/Data Miner | Discovered new exit (range 6) 4684 | -7/Data Miner | Met Data Miner 4701 | -7/Data Miner | Learned location of Section 7 (-2) 4701 | -7/Data Miner | Acquired the access code to Warlord's prototype stash 4718 | -7/Data Miner | Received God Mode back door access code from Data Miner 4740 | -7/Data Miner | Entered Proximity Caves 4750 | -6/Proximity Caves | Learned Factory non-interactive machine intel 4819 | -6/Proximity Caves | Spotter reported a threat 4838 | -6/Proximity Caves | Spotted B-75 Beast 4853 | -6/Proximity Caves | Attracted the attention of an 0b10 checkpoint 4917 | -6/Proximity Caves | Spotter reported a threat 4937 | -6/Proximity Caves | Received a Behemoth hack from an annoying Tinkerer 4979 | -6/Proximity Caves | Spotter reported a threat 4996 | -6/Proximity Caves | Escorted by Enhanced Grunt 5013 | -6/Proximity Caves | Learned 8 Factory zone layouts 5025 | -6/Proximity Caves | Lost 3 parts (1n1u1w) 5159 | -6/Proximity Caves | Discovered new exit (range 8) 5172 | -6/Proximity Caves | Entered Factory 5172 | -6/Factory | Accompanied by 1 ally 5172 | -6/Factory | Evolved 2 slots: Power x1, Utility x1 5173 | -6/Factory | Identified exit to Lower Caves 5175 | -6/Factory | Loaded intel: 161 non-interactive machine locations 5522 | -6/Factory | Search patrols dispatched 5872 | -6/Factory | First assault squad dispatched 6130 | -6/Factory | Garrison activated, responded to threat 6283 | -6/Factory | Discovered new exit (range 12) 6313 | -6/Factory | Identified exit to Extension 6320 | -6/Factory | Entered Extension 6342 | -6/Extension | Disrupted transfer network 6388 | -6/Extension | Rescued a captive Derelict 6389 | -6/Extension | Rescued a captive Derelict 6566 | -6/Extension | Rescued a captive Derelict 6566 | -6/Extension | Rescued a captive Derelict 6579 | -6/Extension | Lost 4 allies 6596 | -6/Extension | Rescued a captive Derelict 6658 | -6/Extension | Lost 3 parts (1p2n) 6719 | -6/Extension | Rescued a captive Derelict 6770 | -6/Extension | Build established: Scavenger-Gladiator 6880 | -6/Extension | Spotted B-75 Beast 6897 | -6/Extension | Core integrity fell below 50% 6899 | -6/Extension | Destroyed B-75 Beast 6927 | -6/Extension | Lost 6 parts (2p2n2u) 7116 | -6/Extension | Rescued a captive Derelict 7265 | -6/Extension | Rescued a captive Derelict 7266 | -6/Extension | Rescued a captive Derelict 7322 | -6/Extension | Rescued a captive Derelict 7406 | -6/Extension | Lost 3 allies 7546 | -6/Extension | Rescued a captive Derelict 7547 | -6/Extension | Rescued a captive Derelict 7610 | -6/Extension | Rescued A7 7699 | -6/Extension | Discovered new exit (range 10) 7700 | -6/Extension | Discovered new exit (range 6) 7720 | -6/Extension | First assault squad dispatched 7735 | -6/Extension | Entered Cetus 7735 | -6/Cetus | Accompanied by 4 allies (A7) 7740 | -6/Cetus | Acquired a Cetus Manufacturing Module code from A7 7752 | -6/Cetus | Spotted Cetus Guard 7752 | -6/Cetus | Spotted Cetus Guard 7753 | -6/Cetus | Spotted Cetus Guard 7755 | -6/Cetus | Lost 5 allies 7755 | -6/Cetus | Spotted Cetus Guard 7774 | -6/Cetus | Allies destroyed Cetus Guard 7775 | -6/Cetus | Allies destroyed Cetus Guard 7783 | -6/Cetus | Allies destroyed Cetus Guard 7785 | -6/Cetus | Allies destroyed Cetus Guard 7829 | -6/Cetus | Started Cetus Manufacturing Module 7854 | -6/Cetus | Manufactured an Enhanced Grunt 7879 | -6/Cetus | Manufactured an Enhanced Grunt 7904 | -6/Cetus | Manufactured an Enhanced Grunt 7929 | -6/Cetus | Manufactured an Enhanced Grunt 7954 | -6/Cetus | Manufactured an Enhanced Grunt 7963 | -6/Cetus | Discovered new exit (range 15) 7984 | -6/Cetus | Spotted Cetus Guard 7984 | -6/Cetus | Spotted Cetus Guard 7986 | -6/Cetus | Spotted Cetus Guard 7988 | -6/Cetus | Spotted Cetus Guard 7993 | -6/Cetus | Discovered new exit (range 16) 7994 | -6/Cetus | Allies destroyed Cetus Guard 7999 | -6/Cetus | Allies destroyed Cetus Guard 8004 | -6/Cetus | Allies destroyed Cetus Guard 8006 | -6/Cetus | Allies destroyed Cetus Guard 8007 | -6/Cetus | Met Revision 17 8029 | -6/Cetus | Entered Factory 8029 | -5/Factory | Accompanied by 8 allies (A7) 8029 | -5/Factory | Evolved 2 slots: Propulsion x1, Utility x1 8329 | -5/Factory | First assault squad dispatched 8500 | -5/Factory | Lost 4 allies 8595 | -5/Factory | Garrison activated, responded to threat 8600 | -5/Factory | System corruption reached 10% 8658 | -5/Factory | Incoming assault squad redirected 8712 | -5/Factory | Lost 13 parts (1p6n4u2w) 8750 | -5/Factory | Spotted B-75 Beast 9165 | -5/Factory | Lost 3 parts (2u1w) 9288 | -5/Factory | Sucked down chute 9288 | -5/Factory | Entered Waste 9299 | -5/Waste | Spotted C-40 Crusher 9303 | -5/Waste | EMP discharged 9303 | -5/Waste | System corruption reached 30% 9334 | -5/Waste | Spotted C-40 Crusher 9334 | -5/Waste | Spotted C-40 Crusher 9340 | -5/Waste | Spotted C-40 Crusher 9341 | -5/Waste | Crushed by Compactor (1 part destroyed, 2 dropped) 9341 | -5/Waste | Spotted C-40 Crusher 9344 | -5/Waste | Crushed by Compactor (1 part destroyed, 2 dropped) 9346 | -5/Waste | Crushed by Compactor (1 part destroyed, 1 dropped) 9348 | -5/Waste | Crushed by Compactor (1 part destroyed, 2 dropped) 9350 | -5/Waste | Core integrity fell below 50% 9352 | -5/Waste | Crushed by Compactor (1 part destroyed) 9352 | -5/Waste | Spotted C-40 Crusher 9377 | -5/Waste | Core integrity fell below 20% 9383 | -5/Waste | Lost 7 parts (5n1u1w) 9384 | -5/Waste | Discovered new exit (range 16) 9391 | -5/Waste | Entered Factory 9578 | -5/Factory | Incoming investigation squad redirected 9802 | -5/Factory | Build established: Scavenger-Mutant 10016 | -5/Factory | Lost 6 parts (1p3n1u1w) 10099 | -5/Factory | Destroyed by G-67 Veteran with Field Laser Last Messages --------------- 09981_ Slug penetrates Assembly Bed. 09982_ K-01 Serf collects debris. 09983_ Penetrated by Slug. 09984_ Acquired Antigrav System. 09985_ Penetrated by Slug. 09985_ Assembly Bed disabled. 09985_ Slug penetrates H-66 Slayer. 09985_ Adv. Shield Generator destroyed. 09985_ K-01 Serf collects debris. 09994_ System corrupted: Energy discharge (-6). 10040_ Slug penetrates Wall. 10043_ U-05 Engineer builds a Wall. 10045_ System corrupted: Heat flow error (+184). 10052_ Critical hit (Burn: +37). 10060_ Hrd. Light Armor Plating destroyed. 10061_ System corrupted: Heat flow error (+181). 10072_ Acquired Core Analyzer. 10077_ System corrupted: Matter fused (-9). 10083_ Acquired Gyrokinetic Inverter. 10092_ IPI6D0K>C4PY&AS REHOBLUCNZL,RJAOC#V6AJ Map ----- +----------------------------------------------------+ | #???????????? ???????????????????????????????????? | | #?????????? ?????????????????????????????????? | | #???????? ?????????????????????????????????? | | #??????? ?????????????????????????????????? | | #####?? ?????????????????????????????????? | | #??? ?????????????????????????????????? | | #???? ?????????????????????????????????? | | #????? ?????????????? #????????????????? | | #?????? ????????????? #????????????????? | | #??????? ???????????? #????????????????? | | #???????? ??????????? #????????????????? | | ##########+############ #????????????????? | | #????????????????? | | #????????????????? | | """" #????????????????? | | """" ! #????????????????? | | """" #????????????????? | | """" ######### ###+###?????????????????? | | """" #???????# #???????????????????????? | | """" #???????# #???????????????????????? | | """" #???????# #???????????????????????? | | #???????# #???????????????????????? | | #???????# #???????????????????????? | | =]]#???????# #???????????????????????? | | =]]#???#######+#########?????????????????? | | ]]]#??# @ ] #?????????????????? | | #??# #?????????????????? | | #??# """" """"g"""" #?????????????????? | | #??# """" """" """" #?????????????????? | | #??# """" """" """" #?????????????????? | | """" #??# """" """" """" #?????????????????? | | """" #??# gg g #?????????????????? | | """" #??# ! ! g #?????????????????? | | """" #??# #?????????????????? | | """" #####################?????????????????? | | """" # #????????????????????????? | | """" # #????????????????????????? | | # """ #????????????????????????? | | # """"" #????????????????????????? | | # """"" #????????????????????????? | | # #????????????????????????? | | #### # """ #????????????????????????? | | ???# + """"" #????????????????????????? | | ???# # """"" #????????????????????????? | | ???# # #????????????????????????? | | ###### # #????????????????????????? | | # # #????????????????????????? | | """ # ##############????????????????????????? | | """ + #?????????????????????????????????????? | | """ # #?????????????????????????????????????? | +----------------------------------------------------+ Best States ------------- Heat Dissipation 66 Energy Generation 39 Energy Capacity 560 Matter Stores 300 Matter Capacity 300 Sight Range 16 Robot Scan Range 16 Terrain Scan Density 10 Armor Coverage 1200 Melee Speed Boost 20 Phase Shifting 5 Evasion (%) 60 Targeting Accuracy 10 Melee Accuracy 12 Target Analysis 6 Core Analysis 9 Recoil Reduction 1 Authchip Count 1 Item Schematics ----------------- Ripper | -8/Materials | Scanalyzed Imp. Signal Interpreter | -8/Materials | Scanalyzed Imp. Sensor Array | -8/Materials | Scanalyzed Arm. Huge Wheel | -8/Materials | Scanalyzed Combat Drone Bay | -7/Data Miner | Free Lgt. Regenerative Plating | -7/Data Miner | Free Biomechanical Wings | -7/Data Miner | Free Gravity Neutralizer | -7/Data Miner | Free Com. Ion Cannon | -7/Data Miner | Free Field Propulsion Drive | -7/Data Miner | Free Adv. Hacking Suite | -7/Data Miner | Free Variable Charge Gun | -7/Data Miner | Free Cloaking Device | -7/Data Miner | Free Centrium Wheel | -7/Data Miner | Free Graphene Brace | -7/Data Miner | Free Robot Schematics ------------------ L-41 Fighter | -7/Data Miner | Free R-10 Processor | -7/Data Miner | Free A-15 Conveyor | -7/Data Miner | Free X-67 Chaingunner | -7/Data Miner | Free S-27 Virus | -7/Data Miner | Free Fabricated ------------ Nothing Alien Tech Used ----------------- None Achievements -------------- Melee Specialist Challenges ------------ None Game ------ Seed MiningResetKatana Manual? 0 Play Time 01:54:02 Cumulative 265.1 hours Start 2024.03.13 @ 18:42:52 End 2024.03.14 @ 15:35:28 Sessions 3 Manual Loads 0 Difficulty Rogue Special Mode None Game No. 117 Rogue 77 Adventurer 29 Explorer 11 Win Type - Total 11 Types 6/0/1/2/0/0/1/0/1 Lore% 61 Gallery% 78 Achievement% 76 Wizard Run 0 Options --------- Layout 0 ASCII 0 Keyboard 0 Movement Numpad Keybinds 0 Fullscreen 2 Font 24/Smallcaps Map View 76x50 Zoom Use 0% Tactical HUD 1 Map Filters NONE Filters LOW_CONTRAST(13,24,33) Steam 1 RUN: 91d124d7-10b2-4245-9f09-e82d3604cee7